bitfinex/quotes_ETHUSD_20241009
["timestamp","ask_amount","ask_price","bid_price","bid_amount"]
[1728490564454,4.08264,2449.4,2449.1,1.96990085]
[1728490564775,4.28741686,2449.6,2449.2,0.8194]
[1728490564952,4.28741686,2449.6,2449.2,4.90235]
[1728490565356,0.20500686,2449.6,2449.4,0.8194]
[1728490566492,4.28738686,2449.6,2449.4,0.8194]
[1728490566698,4.08246,2449.5,2449.4,0.8194]
[1728490569693,4.08246,2449.5,2449.1,1.70998775]
[1728490569694,4.08284,2449.3,2449.2,0.8153]
[1728490570275,4.08284,2449.3,2449.1,1.70998775]
[1728490570467,4.08296,2449.2,2449.1,1.70998775]
[1728490572514,4.08296,2449.2,2449.1,2.47008775]
[1728490573013,0.20500686,2449.6,2449.2,4.08287]
[1728490573014,4.28731686,2449.6,2449.2,4.08287]
[1728490573172,0.20500686,2449.6,2449.3,0.7601]
[1728490573372,0.20500686,2449.6,2449.1,1.96918085]
[1728490573373,4.08263,2449.4,2449.1,1.70998775]
[1728490573603,4.08296,2449.2,2449.1,1.70998775]
[1728490573918,4.0828,2449.3,2449.1,1.70998775]
[1728490574371,4.0827,2449.4,2449.1,1.70998775]
[1728490574767,0.004,2449.2,2449.1,1.70998775]
[1728490574979,0.008,2449.2,2449.1,1.70998775]
[1728490575195,0.012,2449.2,2449.1,3.19816286]
[1728490575571,0.012,2449.2,2449.1,6.60651775]
[1728490575820,0.02,2449.2,2449.1,2.52338775]
[1728490575977,0.032,2449.2,2449.1,2.52338775]
[1728490576174,0.032,2449.2,2449.1,1.72198775]
[1728490576374,4.11496,2449.2,2449.1,1.72598775]
[1728490576698,4.11496,2449.2,2449.1,2.54188775]
[1728490577693,0.032,2449.2,2449.1,2.54188775]
[1728490578856,0.032,2449.2,2449.1,7.70807486]
[1728490579198,0.032,2449.2,2449.1,3.62494486]
[1728490579996,0.032,2449.2,2449.1,2.49188775]
[1728490580193,4.11496,2449.2,2449.1,2.49188775]
[1728490582424,4.11496,2449.2,2449.1,1.68398775]
[1728490582629,20.093993,2449.2,2449.1,1.68398775]
[1728490583296,12.121752,2449.2,2449.1,1.68398775]
[1728490583498,4.11496,2449.2,2449.1,1.68398775]
[1728490583697,10.543482,2449.2,2449.1,1.68398775]
[1728490584831,4.11496,2449.2,2449.1,1.68398775]
[1728490585165,7.66306,2449.2,2449.1,1.68398775]
[1728490585366,4.11496,2449.2,2449.1,1.68398775]
[1728490586071,0.032,2449.2,2449.1,2.43928775]
[1728490586631,0.032,2449.2,2449.1,7.18687685]
[1728490591964,4.11496,2449.2,2449.1,2.43928775]
[1728490592173,4.11496,2449.2,2449.1,1.68398775]
[1728490592468,38.043364,2449.2,2449.1,1.68398775]
[1728490592706,20.726817,2449.2,2449.1,1.68398775]
[1728490593588,17.588236,2449.2,2449.1,1.68398775]
[1728490597183,4.11496,2449.2,2449.1,1.68398775]
[1728490599202,0.032,2449.2,2449.1,1.68398775]
[1728490599577,4.11496,2449.2,2449.1,1.68398775]
[1728490603011,18.93016316,2449.2,2449.1,1.68398775]
[1728490603181,19.35183854,2449.2,2449.1,0.95166944]
[1728490603690,18.82989038,2449.2,2449.1,0.95166944]
[1728490604302,14.53638238,2449.2,2449.1,0.95166944]
[1728490605902,19.13797901,2449.2,2449.1,0.95166944]
[1728490607826,20.19784383,2449.2,2449.1,0.95166944]
[1728490608007,24.03364046,2449.2,2448.9,0.1218433]
[1728490608215,24.03364046,2449.2,2448.3,1.76205937]
[1728490608216,13.01228663,2448.4,2448.3,1.76205937]
[1728490608546,63.38058463,2448.4,2448.3,1.76205937]
[1728490608754,51.38506963,2448.4,2448.3,1.76205937]
[1728490608912,51.94306963,2448.4,2448.3,1.76205937]
[1728490609110,51.94706963,2448.4,2448.3,1.76205937]
[1728490609314,51.94706963,2448.4,2447.4,1.81493506]
[1728490609315,4.0858,2447.5,2447.4,1.81493506]
[1728490609536,8.056799,2447.5,2447.4,1.81493506]
[1728490609849,4.0858,2447.5,2447.4,1.81493506]
[1728490610609,3.0,2447.6,2447.4,1.81493506]
[1728490610847,7.08573,2447.6,2447.4,1.81493506]
[1728490611054,8.17107,2447.7,2447.4,1.81493506]
[1728490611266,0.004,2447.5,2447.4,6.73279506]
[1728490611550,0.016,2447.5,2447.4,2.64683506]
[1728490611762,0.016,2447.5,2447.4,6.73279506]
[1728490611908,0.024,2447.5,2447.4,6.73279506]
[1728490612114,0.028,2447.5,2447.4,3.32411457]
[1728490612451,0.028,2447.5,2447.4,7.41007457]
[1728490612658,0.032,2447.5,2447.4,3.32411457]
[1728490612957,0.032,2447.5,2447.4,6.73679506]
[1728490614617,0.032,2447.5,2447.4,2.65083506]
[1728490614818,0.032,2447.5,2447.4,2.65483506]
[1728490615961,0.032,2447.5,2447.4,2.65883506]
[1728490616126,0.032,2447.5,2447.4,2.66283506]
[1728490616752,0.032,2447.5,2447.4,7.83631057]
[1728490617752,0.032,2447.5,2447.4,7.84031057]
[1728490620757,0.028,2447.5,2447.4,7.84031057]
[1728490621256,4.08391,2448.7,2447.4,7.84031057]
[1728490621257,0.004,2447.6,2447.5,4.0858]
[1728490621546,4.08391,2448.7,2447.7,9.44175663]
[1728490621547,0.004,2447.8,2447.7,9.44175663]
[1728490621754,0.004,2447.8,2447.7,11.20707129]
[1728490621929,0.004,2447.8,2447.7,11.21507129]
[1728490622333,0.004,2447.8,2447.7,11.21907129]
[1728490622643,0.004,2447.8,2447.7,11.22707129]
[1728490623048,4.08314,2449.1,2448.6,0.7801]
[1728490623257,4.08307,2449.2,2448.7,4.08372]
[1728490623563,4.08315,2449.1,2448.7,4.0837]
[1728490623732,0.95729422,2449.4,2448.6,0.7801]
[1728490623733,4.08331,2449.0,2448.6,0.7801]
[1728490624064,4.08388,2448.7,2448.2,0.7801]
[1728490624364,0.7568,2448.8,2448.2,0.7801]
[1728490624522,4.08379,2448.7,2448.6,0.008]
[1728490624721,4.08379,2448.7,2448.6,0.012]
[1728490625148,11.202584,2448.7,2448.6,0.012]
[1728490625473,4.08379,2448.7,2448.6,0.016]
[1728490625759,4.08379,2448.7,2448.6,0.024]
[1728490627257,17.4753934,2448.7,2448.6,0.024]
[1728490627556,17.89773171,2448.7,2448.6,0.024]
[1728490628122,17.90173171,2448.7,2448.6,0.024]
[1728490628321,17.34104494,2448.7,2448.6,0.024]
[1728490629083,17.34504494,2448.7,2448.6,0.024]
[1728490629864,17.90973171,2448.7,2448.6,0.024]
[1728490630023,18.12273748,2448.7,2448.6,0.024]
[1728490630960,18.12673748,2448.7,2448.6,0.024]
[1728490631173,18.13073748,2448.7,2448.6,0.024]
[1728490631375,18.68073748,2448.7,2448.6,0.024]
[1728490631954,69.9027281,2448.7,2448.6,0.024]
[1728490632969,65.6057281,2448.7,2448.6,0.024]
[1728490635147,65.13411548,2448.7,2448.6,0.024]
[1728490638176,64.58411548,2448.7,2448.6,0.024]
[1728490639603,65.13411548,2448.7,2448.6,0.024]
[1728490641559,64.57342871,2448.7,2448.6,0.024]
[1728490641833,65.13411548,2448.7,2448.6,0.024]
[1728490642119,4.0858,2447.5,2447.4,1.81493506]
[1728490642328,57.009002,2447.5,2447.4,1.81493506]
[1728490642476,7.1018,2447.5,2447.4,1.81493506]
[1728490642679,30.49399757,2447.5,2447.4,1.81493506]
[1728490642877,30.49799757,2447.5,2447.4,1.81493506]
[1728490644280,15.35725857,2447.5,2447.4,1.81493506]
[1728490644479,10.65115857,2447.5,2447.4,1.81493506]
[1728490645077,10.85951492,2447.5,2447.4,1.81493506]
[1728490645890,11.68081492,2447.5,2447.4,1.81493506]
[1728490646120,10.85951492,2447.5,2447.4,1.81493506]
[1728490646301,7.32615635,2447.5,2447.4,2.63863506]
[1728490646517,7.32615635,2447.5,2447.4,2.90249857]
[1728490646720,4.32615635,2447.5,2447.4,2.90249857]
[1728490647093,10.52695435,2447.5,2447.4,2.64263506]
[1728490647406,4.32615635,2447.5,2447.4,1.82293506]
[1728490647995,4.32615635,2447.5,2447.4,1.83093506]
[1728490648418,14.72933335,2447.5,2447.4,1.83493506]
[1728490648626,4.32615635,2447.5,2447.4,1.83493506]
[1728490649845,13.96140035,2447.5,2447.4,1.83493506]
[1728490650135,13.96140035,2447.5,2447.4,1.83893506]
[1728490650646,9.48267635,2447.5,2447.4,1.83893506]
[1728490650938,7.17158835,2447.5,2447.4,1.83893506]
[1728490651093,6.70325635,2447.5,2447.4,1.83893506]
[1728490651294,9.70325635,2447.5,2447.4,1.83893506]
[1728490651903,10.12461,2447.5,2447.4,1.83893506]
[1728490652297,10.12496,2447.5,2447.4,1.83893506]
[1728490652539,13.54247,2447.5,2447.4,1.83893506]
[1728490652741,9.76079,2447.5,2447.4,1.83893506]
[1728490652949,7.74751,2447.5,2447.4,1.83893506]
[1728490653243,14.874233,2447.5,2447.4,1.83893506]
[1728490654535,13.769277,2447.5,2447.4,1.83893506]
[1728490654736,9.880646,2447.5,2447.4,1.83893506]
[1728490654998,9.45929235,2447.5,2447.4,1.83893506]
[1728490655199,9.88060373,2447.5,2447.4,1.83893506]
[1728490655824,9.45929235,2447.5,2447.4,1.83893506]
[1728490656008,9.88060278,2447.5,2447.4,1.83893506]
[1728490656440,10.93169678,2447.5,2447.4,1.83893506]
[1728490656599,10.51038635,2447.5,2447.4,1.83893506]
[1728490656804,10.36667713,2447.5,2447.4,1.83893506]
[1728490657001,7.32615635,2447.5,2447.4,1.83893506]
[1728490658240,15.80306435,2447.5,2447.4,1.83893506]
[1728490658550,17.03807575,2447.5,2447.4,1.83893506]
[1728490659635,21.63967238,2447.5,2447.4,1.83893506]
[1728490659816,22.18967238,2447.5,2447.4,1.40605981]
[1728490660003,22.75035915,2447.5,2447.4,1.40605981]
[1728490662656,7.8679,2446.9,2446.8,0.005]
[1728490662881,63.9654814,2446.9,2446.8,0.005]
[1728490663328,63.9694814,2446.9,2446.8,0.005]
[1728490663646,63.9814814,2446.9,2446.8,0.005]
[1728490663845,64.5354814,2446.9,2446.8,0.005]
[1728490664089,64.5434814,2446.9,2446.8,0.005]
[1728490664226,8.22265677,2446.8,2446.7,0.01]
[1728490664531,67.48010077,2446.8,2446.7,0.01]
[1728490664843,7.63713,2446.7,2446.6,0.33741785]
[1728490665040,7.63713,2446.7,2445.6,0.7907]
[1728490665041,7.08747,2446.5,2445.6,0.7907]
[1728490665227,63.71697777,2446.5,2445.2,0.7993]
[1728490665428,63.71697777,2446.5,2445.7,0.7993]
[1728490666454,64.58572129,2446.5,2445.7,0.7993]
[1728490666780,7.08847,2445.9,2445.3,0.8043]
[1728490666931,53.108193,2445.9,2445.3,0.8043]
[1728490667241,49.113194,2445.9,2445.3,0.8043]
[1728490667649,49.113194,2445.9,2445.3,0.005]
[1728490667960,51.03468077,2445.9,2445.3,0.005]
[1728490668475,55.66704729,2445.9,2445.8,1.33631975]
[1728490668644,4.08931,2445.4,2445.3,0.005]
[1728490668830,63.94747452,2445.4,2445.3,0.005]
[1728490669031,11.72233652,2445.0,2444.9,1.97356215]
[1728490669285,29.86925552,2445.0,2444.9,1.20634215]
[1728490669436,30.41925552,2445.0,2444.9,1.20634215]
[1728490669779,30.42325552,2445.0,2444.9,1.20634215]
[1728490670479,31.03510896,2445.0,2444.9,1.21034215]
[1728490670970,31.24700098,2445.0,2444.9,1.21434215]
[1728490671170,31.25100098,2445.0,2444.9,1.21434215]
[1728490671330,31.25500098,2445.0,2444.9,1.21834215]
[1728490671537,7.09115,2444.3,2444.2,0.00080409]
[1728490671745,37.632607,2444.3,2444.2,0.00080409]
[1728490672536,21.737134,2444.3,2444.2,0.00080409]
[1728490672933,28.31515396,2444.3,2444.2,0.00080409]
[1728490673236,27.70330052,2444.3,2444.2,0.00080409]
[1728490673551,63.96361452,2444.3,2444.2,0.00080409]
[1728490674269,4.09115,2444.3,2444.2,0.00080409]
[1728490674454,4.09115,2444.3,2444.2,0.80090409]
[1728490674780,0.004,2444.3,2444.2,0.80090409]
[1728490675079,4.10715,2444.3,2444.2,0.80090409]
[1728490675236,4.11915,2444.3,2444.2,0.80090409]
[1728490675435,4.12315,2444.3,2444.2,0.80090409]
[1728490675636,4.12315,2444.3,2444.2,0.80490409]
[1728490675866,4.12315,2444.3,2444.2,0.80890409]
[1728490676185,0.032,2444.3,2444.2,0.81290409]
[1728490676336,0.032,2444.3,2444.2,1.10862261]
[1728490676531,4.12315,2444.3,2444.2,0.81290409]
[1728490676732,0.032,2444.3,2444.2,0.81290409]
[1728490677481,0.032,2444.3,2444.2,0.81690409]
[1728490677973,27.819402,2444.3,2444.2,0.01680409]
[1728490678300,18.811365,2444.3,2444.2,0.01680409]
[1728490678573,18.811365,2444.3,2444.2,0.02080409]
[1728490678760,21.811365,2444.3,2444.2,0.02080409]
[1728490679138,22.23182562,2444.3,2444.2,0.02080409]
[1728490679449,22.23182562,2444.3,2444.2,0.02480409]
[1728490680179,13.00063162,2444.3,2444.2,0.02480409]
[1728490681877,10.91829062,2444.3,2444.2,0.02480409]
[1728490682289,7.54361062,2444.3,2444.2,0.02480409]
[1728490682440,7.12315,2444.3,2444.2,0.02480409]
[1728490682639,4.12315,2444.3,2444.2,0.02480409]
[1728490682854,0.032,2444.3,2444.2,0.02480409]
[1728490683289,0.032,2444.3,2444.2,0.32479261]
[1728490683555,0.032,2444.3,2444.2,1.14209261]
[1728490683782,4.12315,2444.3,2444.2,1.14209261]
[1728490684007,4.12315,2444.3,2444.2,0.84210409]
[1728490684306,0.032,2444.3,2444.2,0.84210409]
[1728490684854,4.12315,2444.3,2444.2,0.84210409]
[1728490685051,0.032,2444.3,2444.2,0.84210409]
[1728490685357,0.032,2444.3,2444.2,4.93341409]
[1728490685556,0.032,2444.3,2444.2,6.05074761]
[1728490686273,4.08982,2445.1,2444.7,0.7856]
[1728490686458,4.08975,2445.2,2444.7,0.7856]
[1728490686459,4.08975,2445.2,2444.7,4.87599]
[1728490686807,4.08939,2445.4,2445.1,0.8002]
[1728490687092,4.08875,2445.8,2445.2,4.0895]
[1728490687297,4.08875,2445.8,2445.4,0.8002]
[1728490687458,4.08826,2446.1,2445.4,4.8895]
[1728490687658,4.08857,2445.9,2445.5,0.7647]
[1728490687855,4.08826,2446.1,2445.4,0.7647]
[1728490688081,4.08855,2445.9,2445.5,0.7647]
[1728490688287,4.08738,2446.6,2445.6,0.7647]
[1728490688498,0.20837944,2446.3,2445.7,4.0887]
[1728490688710,0.20837944,2446.3,2445.8,0.7647]
[1728490688992,4.08798,2446.2,2445.8,0.7647]
[1728490689194,4.08781,2446.3,2445.8,0.7647]
[1728490689491,4.08758,2446.5,2445.9,0.7647]
[1728490689693,4.08758,2446.5,2446.1,0.7647]
[1728490690193,4.08689,2446.9,2446.4,0.7777]
[1728490690433,4.08689,2446.9,2446.4,0.7857]
[1728490690434,4.08706,2446.8,2446.4,0.7857]
[1728490690562,4.08718,2446.7,2446.4,0.7857]
[1728490690759,4.08706,2446.8,2446.4,0.7857]
[1728490690989,4.08706,2446.8,2446.7,0.008]
[1728490691193,4.08697,2446.8,2446.7,0.012]
[1728490691727,4.08697,2446.8,2446.7,0.016]
[1728490691915,4.08681,2446.9,2446.7,0.016]
[1728490692066,4.08697,2446.8,2446.7,0.02]
[1728490693008,4.08697,2446.8,2446.7,0.024]
[1728490693506,4.09497,2446.8,2446.7,0.024]
[1728490694379,4.09897,2446.8,2446.7,0.024]
[1728490694579,4.10297,2446.8,2446.7,0.024]
[1728490694801,0.016,2446.8,2446.7,0.024]
[1728490695323,0.016,2446.8,2446.7,0.8165]
[1728490695808,4.10297,2446.8,2446.7,0.8165]
[1728490695970,4.10297,2446.8,2446.7,0.024]
[1728490696408,4.31030958,2446.8,2446.7,0.024]
[1728490697117,28.02999558,2446.8,2446.7,0.024]
[1728490697272,24.83175858,2446.8,2446.7,0.024]
[1728490697794,20.44246058,2446.8,2446.7,0.024]
[1728490698052,18.83100758,2446.8,2446.7,0.024]
[1728490698503,11.12436758,2446.8,2446.7,0.024]
[1728490700024,14.12436758,2446.8,2446.7,0.024]
[1728490700320,15.46338237,2446.8,2446.7,0.024]
[1728490700689,14.94786758,2446.8,2446.7,0.024]
[1728490701327,14.12436758,2446.8,2446.7,0.024]
[1728490701627,7.21030958,2446.8,2446.7,0.024]
[1728490702423,14.23831158,2446.8,2446.7,0.024]
[1728490702723,7.21030958,2446.8,2446.7,0.024]
[1728490702896,26.26592358,2446.8,2446.7,0.024]
[1728490703220,25.97396258,2446.8,2446.7,0.024]
[1728490703578,27.29217737,2446.8,2446.7,0.024]
[1728490704522,27.29217737,2446.8,2446.7,0.024]
[1728490705478,27.84217737,2446.8,2446.7,0.024]
[1728490705912,27.84617737,2446.8,2446.7,0.024]
[1728490706106,28.26715174,2446.8,2446.7,0.024]
[1728490706596,28.27515174,2446.8,2446.7,0.024]
[1728490706952,4.08949,2445.3,2444.3,0.7982]
[1728490707165,4.09098,2444.4,2444.3,0.7982]
[1728490707294,0.004,2444.4,2444.3,4.88933]
[1728490707622,0.016,2444.4,2444.3,1.89899719]
[1728490707825,0.016,2444.4,2444.3,0.7982]
[1728490708621,4.10698,2444.4,2444.3,0.7982]
[1728490709213,4.10698,2444.4,2444.2,0.00080409]
[1728490709214,4.09115,2444.3,2444.2,0.00080409]
[1728490709402,4.10698,2444.4,2444.2,0.00080409]
[1728490709601,4.09115,2444.3,2444.2,0.00080409]
[1728490710298,4.10698,2444.4,2444.2,0.00080409]
[1728490710494,4.09115,2444.3,2444.2,0.00080409]
[1728490711343,4.10698,2444.4,2444.2,0.00080409]
[1728490711344,0.016,2444.4,2444.2,0.00080409]
[1728490711515,0.016,2444.4,2444.3,0.8088]
[1728490712501,0.016,2444.4,2444.3,0.8128]
[1728490713207,4.10698,2444.4,2444.3,0.004]
[1728490713637,4.10698,2444.4,2444.3,0.008]
[1728490713842,4.10698,2444.4,2444.3,0.016]
[1728490714519,7.10698,2444.4,2444.3,0.024]
[1728490715911,4.10698,2444.4,2444.3,0.024]
[1728490716240,0.016,2444.4,2444.3,0.024]
[1728490716421,0.016,2444.4,2444.3,0.30515419]
[1728490717739,0.016,2444.4,2444.3,4.39630419]
[1728490718147,0.016,2444.4,2444.3,5.19840419]
[1728490719219,0.016,2444.4,2444.3,1.10725419]
[1728490719551,4.10698,2444.4,2444.3,0.8261]
[1728490719759,0.016,2444.4,2444.3,0.8261]
[1728490721169,0.016,2444.4,2444.3,0.024]
[1728490721671,4.10698,2444.4,2444.3,0.024]
[1728490725294,4.08923,2445.5,2445.2,0.024]
[1728490725489,1.34252977,2446.0,2445.2,0.024]
[1728490725638,12.48503652,2445.3,2445.2,0.024]
[1728490725838,61.07316229,2445.3,2445.2,0.024]
[1728490726872,61.07316229,2445.3,2445.2,0.02]
[1728490727383,61.07316229,2445.3,2445.2,0.016]
[1728490727592,61.67446229,2445.3,2445.2,0.016]
[1728490728583,3.7941,2445.2,2444.2,0.00080409]
[1728490728791,7.88525,2444.3,2444.2,0.00080409]
[1728490728969,41.318991,2444.3,2444.2,0.00080409]
[1728490729283,36.66674177,2444.3,2444.2,0.00080409]
[1728490729499,36.087412,2444.3,2444.2,0.00080409]
[1728490729796,36.091412,2444.3,2444.2,0.00080409]
[1728490729947,36.095412,2444.3,2444.2,0.00080409]
[1728490730382,34.41585829,2444.3,2444.2,0.00080409]
[1728490730601,33.83652852,2444.3,2444.2,0.00080409]
[1728490730890,34.42385829,2444.3,2444.2,0.00080409]
[1728490731291,33.84452852,2444.3,2444.2,0.00080409]
[1728490731492,34.42385829,2444.3,2444.2,0.00080409]
[1728490731794,35.18194477,2444.3,2444.2,0.00080409]
[1728490732098,30.54957825,2444.3,2444.2,0.00080409]
[1728490732669,34.86057825,2444.3,2444.2,0.00080409]
[1728490732884,30.54957825,2444.3,2444.2,0.00080409]
[1728490735793,29.97024848,2444.3,2444.2,0.00080409]
[1728490735997,30.54957825,2444.3,2444.2,0.00080409]
[1728490736168,29.84042362,2444.3,2444.2,0.00080409]
[1728490736497,26.84042362,2444.3,2444.2,0.00080409]
[1728490736993,56.43580962,2444.3,2444.2,0.00080409]
[1728490738454,56.94830606,2444.3,2444.2,0.00080409]
[1728490738857,60.56904328,2444.3,2444.2,0.00080409]
[1728490739993,60.05654684,2444.3,2444.2,0.00080409]
[1728490740201,60.99592863,2444.3,2444.2,0.00080409]
[1728490740397,60.48343219,2444.3,2444.2,0.00080409]
[1728490740573,59.86269497,2444.3,2444.2,0.00080409]
[1728490740774,60.92519141,2444.3,2444.2,0.00080409]
[1728490741069,60.99592956,2444.3,2444.2,0.00080409]
[1728490745806,3.55,2444.0,2443.4,0.005]
[1728490746002,11.72485652,2443.5,2443.4,0.005]
[1728490746179,62.63115452,2443.5,2443.4,0.005]
[1728490746375,63.05131897,2443.5,2443.4,0.005]
[1728490746776,58.41895245,2443.5,2443.4,0.005]
[1728490746975,63.05131897,2443.5,2443.4,0.005]
[1728490747184,58.41895245,2443.5,2443.4,0.7703]
[1728490747493,4.09249,2443.5,2443.4,0.7703]
[1728490747663,4.10049,2443.5,2443.4,0.7703]
[1728490747863,4.10849,2443.5,2443.4,0.7703]
[1728490748504,7.10849,2443.5,2443.4,0.7703]
[1728490748910,7.10849,2443.5,2443.4,0.7743]
[1728490749114,44.13610952,2443.5,2443.4,0.009]
[1728490749988,44.13610952,2443.5,2443.4,0.017]
[1728490751014,44.13610952,2443.5,2443.4,0.021]
[1728490751607,24.36580569,2443.5,2443.4,0.021]
[1728490751911,24.36580569,2443.5,2443.4,0.029]
[1728490751912,17.14200379,2443.5,2443.4,0.029]
[1728490752269,21.77437031,2443.5,2443.4,0.029]
[1728490753410,1.0781601,2443.5,2443.4,0.7942]
[1728490753570,1.0781601,2443.5,2443.4,1.08155135]
[1728490753571,0.016,2443.5,2443.4,1.08155135]
[1728490753915,4.10849,2443.5,2443.4,0.7942]
[1728490754122,13.867453,2443.5,2443.4,0.7942]
[1728490754549,6.471684,2443.5,2443.4,0.7942]
[1728490754679,4.10849,2443.5,2443.4,0.7942]
[1728490754885,10.985037,2443.5,2443.4,0.029]
[1728490756091,7.985037,2443.5,2443.4,0.029]
[1728490756409,4.10849,2443.5,2443.4,0.8486]
[1728490756996,7.10849,2443.5,2443.4,0.8486]
[1728490757198,16.792778,2443.5,2443.4,0.8486]
[1728490757706,10.409811,2443.5,2443.4,0.8486]
[1728490758108,10.409811,2443.5,2443.4,0.029]
[1728490759620,9.207097,2443.5,2443.4,0.029]
[1728490759799,7.10849,2443.5,2443.4,0.029]
[1728490760001,10.484167,2443.5,2443.4,0.029]
[1728490760322,9.465391,2443.5,2443.4,0.029]
[1728490760823,7.10849,2443.5,2443.4,0.029]
[1728490760991,11.887605,2443.5,2443.4,0.029]
[1728490761606,10.224695,2443.5,2443.4,0.029]
[1728490761924,7.224695,2443.5,2443.4,0.029]
[1728490762108,4.10849,2443.5,2443.4,0.029]
[1728490762618,4.10849,2443.5,2443.4,0.8242]
[1728490762619,0.016,2443.5,2443.4,0.8242]
[1728490762914,0.016,2443.5,2443.4,1.53199174]
[1728490763342,0.016,2443.5,2443.4,5.62464174]
[1728490763482,0.016,2443.5,2443.4,5.70626415]
[1728490764177,0.016,2443.5,2443.4,1.53199174]
[1728490764375,4.10849,2443.5,2443.4,0.8242]
[1728490765393,0.016,2443.5,2443.4,0.8242]
[1728490765608,4.10849,2443.5,2443.4,0.8242]
[1728490768199,19.221719,2443.5,2443.4,0.8242]
[1728490769224,9.65469,2443.5,2443.4,0.8242]
[1728490769441,4.10849,2443.5,2443.4,0.8242]
[1728490769668,6.65469,2443.5,2443.4,0.8242]
[1728490769833,8.227982,2443.5,2443.4,0.8242]
[1728490770033,4.10849,2443.5,2443.4,0.8242]
[1728490770861,0.016,2443.5,2443.4,0.8242]
[1728490771037,0.016,2443.5,2443.4,1.52384835]
[1728490771652,4.10849,2443.5,2443.4,0.029]
[1728490771856,0.016,2443.5,2443.4,0.029]
[1728490772036,4.10849,2443.5,2443.4,0.029]
[1728490772238,8.143648,2443.5,2443.4,0.029]
[1728490772436,6.502652,2443.5,2443.4,0.029]
[1728490772931,4.10849,2443.5,2443.4,0.029]
[1728490774260,0.016,2443.5,2443.4,0.029]
[1728490774753,0.016,2443.5,2443.4,4.74176235]
[1728490776159,0.016,2443.5,2443.4,0.64911235]
[1728490776474,0.016,2443.5,2443.4,0.029]
[1728490776996,0.016,2443.5,2443.4,4.12165]
[1728490777503,0.016,2443.5,2443.4,0.029]
[1728490778375,0.016,2443.5,2443.4,4.12165]
[1728490778565,0.016,2443.5,2443.4,4.18626846]
[1728490778767,0.016,2443.5,2443.4,5.22209566]
[1728490779399,0.016,2443.5,2443.4,5.1574772]
[1728490781278,0.016,2443.5,2443.4,1.0648272]
[1728490781599,0.016,2443.5,2443.4,0.029]
[1728490781798,0.016,2443.5,2443.4,4.12165]
[1728490782006,0.016,2443.5,2443.4,0.029]
[1728490782206,4.10849,2443.5,2443.4,0.029]
[1728490782778,0.016,2443.5,2443.4,0.029]
[1728490784514,4.10849,2443.5,2443.4,0.029]
[1728490785306,0.016,2443.5,2443.4,0.029]
[1728490786018,0.016,2443.5,2443.4,0.64910535]
[1728490786322,0.016,2443.5,2443.4,4.74175535]
[1728490787491,0.016,2443.5,2443.4,0.64910535]
[1728490787694,0.016,2443.5,2443.4,4.74175535]
[1728490788781,0.016,2443.5,2443.4,0.64910535]
[1728490789917,0.016,2443.5,2443.4,4.12165]
[1728490790423,4.09137,2444.2,2443.7,4.09209]
[1728490790625,4.89667,2444.2,2443.9,0.004]
[1728490790779,54.997858,2444.1,2443.9,0.008]
[1728490790979,54.997948,2444.0,2443.9,0.016]
[1728490791217,54.997948,2444.0,2443.9,0.024]
[1728490792327,50.906298,2444.0,2443.9,0.024]
[1728490792631,56.31574444,2444.0,2443.9,0.024]
[1728490792833,55.803248,2444.0,2443.9,0.024]
[1728490795337,55.811248,2444.0,2443.9,0.024]
[1728490795536,55.815248,2444.0,2443.9,0.024]
[1728490796343,55.819248,2444.0,2443.9,0.024]
[1728490800911,55.819248,2444.0,2443.4,0.005]
[1728490800912,7.09249,2443.5,2443.4,0.005]
[1728490801110,53.76333477,2443.5,2443.4,0.005]
[1728490801307,11.68117777,2443.5,2443.4,0.005]
[1728490801518,4.91619,2443.5,2443.4,0.005]
[1728490801961,0.016,2443.5,2443.4,0.005]
[1728490802456,4.10849,2443.5,2443.4,0.005]
[1728490802652,0.016,2443.5,2443.4,0.005]
[1728490802806,0.016,2443.5,2443.4,0.8202]
[1728490803006,4.10849,2443.5,2443.4,0.29495135]
[1728490804249,0.016,2443.5,2443.4,1.08955135]
[1728490804461,0.016,2443.5,2443.4,1.09355135]
[1728490804957,0.016,2443.5,2443.4,1.17534369]
[1728490805340,0.016,2443.5,2443.4,1.09355135]
[1728490805717,4.10849,2443.5,2443.4,0.29895135]
[1728490806028,4.10849,2443.5,2443.4,0.009]
[1728490806509,4.10849,2443.5,2443.4,0.017]
[1728490807326,4.10849,2443.5,2443.4,0.025]
[1728490807746,0.016,2443.5,2443.4,0.025]
[1728490808313,0.016,2443.5,2443.4,4.88415]
[1728490808572,0.016,2443.5,2443.4,6.37485721]
[1728490808858,0.016,2443.5,2443.4,6.45649361]
[1728490809215,0.016,2443.5,2443.4,6.37485721]
[1728490810625,0.016,2443.5,2443.4,10.69384498]
[1728490810972,0.016,2443.5,2443.4,10.99109918]
[1728490811372,0.016,2443.5,2443.4,10.14384498]
[1728490811701,0.016,2443.5,2443.4,6.37485721]
[1728490812982,0.016,2443.5,2443.4,10.22548138]
[1728490813306,0.016,2443.5,2443.4,14.01989918]
[1728490813475,0.016,2443.5,2443.4,8.85365721]
[1728490813866,0.016,2443.5,2443.4,12.62264498]
[1728490815304,0.016,2443.5,2443.4,13.17264498]
[1728490815510,0.016,2443.5,2443.4,14.01989918]
[1728490815873,0.016,2443.5,2443.4,14.02990633]
[1728490816077,0.016,2443.5,2443.4,14.02990797]
[1728490816285,0.016,2443.5,2443.4,14.0297564]
[1728490816493,0.016,2443.5,2443.4,14.44352628]
[1728490817010,0.791,2445.2,2444.7,4.09045]
[1728490817181,4.08925,2445.5,2445.0,8.65274777]
[1728490817519,4.08925,2445.5,2444.8,0.484335]